bitfinex/quotes_BTCUSD_20240717
["timestamp","ask_amount","ask_price","bid_price","bid_amount"]
[1721178442329,0.0807,65715.0,65713.0,0.05499776]
[1721178442533,0.07917479,65724.0,65714.0,0.00702699]
[1721178442687,0.07917479,65724.0,65706.0,0.21534474]
[1721178442887,0.07917479,65724.0,65707.0,0.10703444]
[1721178443088,0.07717479,65723.0,65711.0,0.7]
[1721178443331,0.304243,65737.0,65712.0,0.01007205]
[1721178443332,0.152127,65735.0,65712.0,0.01007205]
[1721178443534,0.00277097,65734.0,65719.0,0.5]
[1721178443755,0.00835,65736.0,65720.0,0.00702061]
[1721178444479,0.04971591,65734.0,65720.0,0.01006334]
[1721178444734,0.00277097,65731.0,65720.0,0.01006334]
[1721178444892,0.04971591,65734.0,65720.0,0.01006334]
[1721178445095,0.04971591,65734.0,65720.0,0.00702061]
[1721178445337,0.00090489,65732.0,65720.0,0.31438425]
[1721178445636,0.00090489,65732.0,65721.0,0.09399432]
[1721178445637,0.001,65723.0,65721.0,0.09399432]
[1721178445871,0.001,65723.0,65721.0,0.05499776]
[1721178446201,0.07717479,65731.0,65722.0,0.00701845]
[1721178446398,0.07717479,65731.0,65722.0,0.04601501]
[1721178446612,0.07717479,65731.0,65722.0,0.00701845]
[1721178446904,0.001,65723.0,65721.0,0.012]
[1721178447113,0.001,65723.0,65718.0,0.152164]
[1721178447321,0.001,65723.0,65719.0,0.023]
[1721178447526,0.001,65723.0,65722.0,0.003]
[1721178447673,0.001,65723.0,65722.0,0.03301845]
[1721178448918,0.00277097,65730.0,65722.0,0.03306103]
[1721178449128,0.04971591,65734.0,65729.0,0.46304871]
[1721178449330,0.00144159,65744.0,65739.0,1.405515]
[1721178449534,0.00144159,65744.0,65739.0,1.84697107]
[1721178449704,0.00144159,65744.0,65739.0,1.33187536]
[1721178449938,0.00144159,65744.0,65739.0,1.97689343]
[1721178450154,0.0034,65740.0,65739.0,2.61043407]
[1721178450343,0.0011,65748.0,65747.0,1.74079239]
[1721178450519,0.0011,65748.0,65747.0,1.88854065]
[1721178450719,0.0011,65748.0,65747.0,1.03003572]
[1721178451149,0.0011,65748.0,65747.0,1.11783572]
[1721178451377,0.0011,65748.0,65747.0,0.91783572]
[1721178451582,0.0011,65748.0,65747.0,1.11783572]
[1721178451785,0.0011,65748.0,65747.0,1.42356331]
[1721178452123,0.0011,65748.0,65747.0,0.07549769]
[1721178452253,0.0011,65748.0,65747.0,0.2295033]
[1721178452475,0.0011,65748.0,65747.0,0.0544053]
[1721178452874,0.0011,65748.0,65747.0,0.0684053]
[1721178453034,0.0011,65748.0,65747.0,0.02033392]
[1721178453236,0.0011,65748.0,65747.0,0.00633392]
[1721178453437,0.0011,65748.0,65747.0,0.02033392]
[1721178453774,0.0011,65748.0,65747.0,0.02033393]
[1721178453981,0.0011,65748.0,65747.0,0.00633393]
[1721178454184,0.0011,65748.0,65747.0,0.01733393]
[1721178454529,0.0011,65748.0,65747.0,0.00633393]
[1721178454661,0.0011,65748.0,65738.0,0.1]
[1721178454860,0.0011,65748.0,65739.0,0.17738174]
[1721178455068,0.0011,65748.0,65739.0,0.33583811]
[1721178455268,0.0011,65748.0,65740.0,0.3072666]
[1721178455469,0.0011,65748.0,65741.0,0.18372125]
[1721178455698,0.0011,65748.0,65741.0,0.16376286]
[1721178455932,0.0011,65748.0,65743.0,0.304211]
[1721178456153,0.0011,65748.0,65744.0,0.18448217]
[1721178456282,0.0011,65748.0,65744.0,0.03237817]
[1721178456482,0.0011,65748.0,65747.0,0.014]
[1721178456746,0.0011,65748.0,65747.0,0.03234714]
[1721178457107,0.0011,65748.0,65747.0,0.02930568]
[1721178457505,0.04601,65750.0,65747.0,0.02840742]
[1721178457709,0.04601,65750.0,65747.0,0.00630568]
[1721178457914,0.04601,65750.0,65747.0,0.009]
[1721178458157,0.04601,65750.0,65748.0,0.00630475]
[1721178458330,0.07717479,65749.0,65748.0,0.00630475]
[1721178458509,0.04601,65750.0,65747.0,0.009]
[1721178458725,0.04601,65750.0,65748.0,0.00630475]
[1721178459553,0.04601,65750.0,65748.0,0.16068649]
[1721178459758,0.04601,65750.0,65749.0,1.33366174]
[1721178460111,0.04601,65750.0,65749.0,2.16831312]
[1721178460272,0.04430921,65766.0,65755.0,0.304157]
[1721178460479,0.04430921,65766.0,65756.0,0.17738174]
[1721178460685,0.04430921,65766.0,65757.0,0.152074]
[1721178460882,0.04430921,65766.0,65758.0,0.023]
[1721178461083,0.07717479,65765.0,65758.0,0.02929546]
[1721178461413,0.04430921,65766.0,65758.0,0.00629546]
[1721178461776,0.04430921,65766.0,65759.0,0.023]
[1721178461978,0.04430921,65766.0,65759.0,0.0062595]
[1721178462178,0.04430921,65766.0,65760.0,0.023]
[1721178462387,0.022,65768.0,65760.0,0.023]
[1721178462605,0.022,65768.0,65761.0,0.00625764]
[1721178462806,0.022,65768.0,65762.0,0.023]
[1721178462981,0.07717479,65767.0,65762.0,0.023]
[1721178463183,0.0658,65766.0,65763.0,0.00625578]
[1721178463738,0.0658,65766.0,65760.0,0.001]
[1721178463889,0.0658,65766.0,65761.0,0.00625764]
[1721178464096,0.0658,65766.0,65758.0,0.023]
[1721178464404,0.0658,65766.0,65755.0,0.456235]
[1721178464405,0.0658,65766.0,65762.0,0.004]
[1721178464607,0.0658,65766.0,65759.0,0.0062595]
[1721178464848,0.0658,65766.0,65763.0,0.00625578]
[1721178464994,0.0658,65766.0,65760.0,0.023]
[1721178465196,0.0658,65766.0,65755.0,0.304158]
[1721178465197,0.0658,65766.0,65764.0,0.00625486]
[1721178465548,0.0658,65766.0,65757.0,0.023]
[1721178465691,0.0658,65766.0,65758.0,0.05852083]
[1721178465896,0.0658,65766.0,65760.0,0.006]
[1721178466102,0.07717479,65765.0,65761.0,0.00625764]
[1721178466303,0.07717479,65765.0,65751.0,0.04997864]
[1721178466526,0.00277097,65764.0,65752.0,0.00626601]
[1721178466727,0.07717479,65757.0,65752.0,0.00626601]
[1721178466922,0.00277097,65764.0,65752.0,0.00603678]
[1721178467140,0.00277097,65764.0,65760.0,0.006]
[1721178467545,0.00277097,65764.0,65750.0,0.51590452]
[1721178467546,0.0792,65763.0,65750.0,0.51590452]
[1721178467755,0.00277097,65762.0,65751.0,0.006251]
[1721178467950,0.00277097,65762.0,65751.0,0.029251]
[1721178468441,0.00277097,65762.0,65751.0,0.006251]
[1721178468570,0.0792,65763.0,65751.0,0.006251]
[1721178468794,0.00277097,65762.0,65751.0,0.006251]
[1721178469778,0.0631,65761.0,65760.0,0.002]
[1721178469975,0.0631,65761.0,65751.0,0.006251]
[1721178470183,0.00277097,65760.0,65750.0,0.51590452]
[1721178470388,0.2201,65757.0,65752.0,0.00626257]
[1721178470583,0.2201,65757.0,65751.0,0.0062635]
[1721178470784,0.00277097,65756.0,65753.0,0.00626164]
[1721178470990,0.00277097,65756.0,65742.0,0.252108]
[1721178471252,0.00277097,65756.0,65744.0,0.060928]
[1721178471427,0.2201,65757.0,65745.0,0.1492868]
[1721178471604,0.2201,65757.0,65746.0,0.2262868]
[1721178471806,0.0631,65761.0,65745.0,0.02924125]
[1721178472133,0.00277097,65760.0,65746.0,0.13252734]
[1721178472458,0.00277097,65760.0,65747.0,0.22628702]
[1721178472590,0.00277097,65760.0,65747.0,0.1]
[1721178472792,0.0631,65761.0,65752.0,0.005]
[1721178472975,0.0631,65761.0,65748.0,0.13252485]
[1721178472976,0.0631,65761.0,65748.0,0.00623846]
[1721178473176,0.0631,65761.0,65753.0,0.00623381]
[1721178473429,0.0631,65761.0,65749.0,0.00304142]
[1721178473430,0.001,65760.0,65749.0,0.00304142]
[1721178473660,0.2993,65763.0,65756.0,0.152075]
[1721178473661,0.0792,65763.0,65756.0,0.152075]
[1721178473935,0.001,65761.0,65757.0,0.1813066]
[1721178474111,0.001,65761.0,65757.0,0.48776234]
[1721178474311,0.001,65761.0,65759.0,0.152068]
[1721178474476,0.001,65761.0,65760.0,0.61170663]
[1721178474695,0.001,65761.0,65760.0,0.58870663]
[1721178474875,0.088,65768.0,65760.0,0.15550263]
[1721178475118,0.088,65768.0,65761.0,0.12627181]
[1721178475329,0.088,65768.0,65762.0,0.00622896]
[1721178475472,0.088,65768.0,65763.0,0.12627181]
[1721178475678,0.088,65768.0,65764.0,0.0062271]
[1721178475895,0.088,65768.0,65761.0,0.152065]
[1721178476094,0.088,65768.0,65762.0,0.13249274]
[1721178476367,0.088,65768.0,65763.0,0.12626378]
[1721178476560,0.088,65768.0,65764.0,0.12626378]
[1721178476765,0.088,65768.0,65765.0,0.13248995]
[1721178476964,0.088,65768.0,65766.0,0.12626153]
[1721178477103,0.088,65768.0,65765.0,0.00622617]
[1721178477304,0.088,65768.0,65754.0,0.04936221]
[1721178477511,0.088,65768.0,65762.0,0.004]
[1721178477741,0.088,65768.0,65763.0,0.1262641]
[1721178477935,0.088,65768.0,65764.0,0.13247279]
[1721178478161,0.088,65768.0,65766.0,0.002]
[1721178478855,0.088,65768.0,65766.0,0.154053]
[1721178479056,0.088,65768.0,65767.0,0.00620591]
[1721178479409,0.088,65768.0,65767.0,0.1324672]
[1721178481332,0.088,65768.0,65767.0,0.1364672]
[1721178481555,0.088,65768.0,65767.0,0.13246999]
[1721178481754,0.088,65768.0,65767.0,0.15825691]
[1721178481962,0.022,65768.0,65767.0,1.35425033]
[1721178482113,0.022,65768.0,65767.0,2.07420954]
[1721178482297,0.022,65768.0,65767.0,2.07420187]
[1721178482497,0.022,65768.0,65767.0,0.61161255]
[1721178482817,0.022,65768.0,65767.0,0.13245855]
[1721178483230,0.02284,65768.0,65767.0,0.13245855]
[1721178483665,0.02284,65768.0,65767.0,0.13545855]
[1721178483832,0.15974,65768.0,65767.0,0.00920591]
[1721178484059,0.15974,65768.0,65767.0,0.00620591]
[1721178484263,0.15974,65768.0,65767.0,0.003]
[1721178484464,0.15974,65768.0,65760.0,0.152066]
[1721178484705,0.00277097,65767.0,65761.0,0.14926143]
[1721178484932,0.15974,65768.0,65764.0,0.152057]
[1721178485047,0.07994576,65767.0,65765.0,0.12626143]
[1721178485254,0.00277097,65767.0,65765.0,0.00709129]
[1721178485453,0.15974,65768.0,65765.0,0.00709129]
[1721178485756,0.00277097,65767.0,65757.0,0.152073]
[1721178485958,0.15974,65768.0,65758.0,0.13288934]
[1721178486200,0.15974,65768.0,65761.0,0.152064]
[1721178486414,0.15974,65768.0,65762.0,0.12626508]
[1721178486602,0.07717479,65767.0,65763.0,0.12626508]
[1721178486804,0.07717479,65767.0,65762.0,0.00662054]
[1721178486805,0.00277097,65766.0,65762.0,0.00662054]
[1721178486960,0.00277097,65766.0,65764.0,0.00652782]
[1721178487162,0.15974,65768.0,65764.0,0.00652782]
[1721178487163,0.00277097,65767.0,65764.0,0.00652782]
[1721178487421,0.15974,65768.0,65756.0,0.152076]
[1721178487422,0.15974,65768.0,65756.0,0.152077]
[1721178487556,0.15974,65768.0,65757.0,0.12626578]
[1721178487761,0.15974,65768.0,65758.0,0.13279918]
[1721178487961,0.15974,65768.0,65759.0,0.12626578]
[1721178488200,0.00277097,65767.0,65761.0,0.30413]
[1721178488406,0.15974,65768.0,65762.0,0.1781018]
[1721178488617,0.02284,65768.0,65762.0,0.15883564]
[1721178488778,0.02284,65768.0,65763.0,0.12626516]
[1721178488977,0.02284,65768.0,65764.0,0.12626516]
[1721178489176,0.02284,65768.0,65764.0,0.00652782]
[1721178489400,0.02284,65768.0,65766.0,0.152052]
[1721178489811,0.02284,65768.0,65767.0,0.00652503]
[1721178490420,0.02284,65768.0,65765.0,0.175056]
[1721178490656,0.02284,65768.0,65767.0,0.00652503]
[1721178490782,0.02284,65768.0,65767.0,0.023]
[1721178490988,0.02284,65768.0,65767.0,0.00652503]
[1721178491483,0.02284,65768.0,65754.0,0.04936221]
[1721178491665,0.08297097,65767.0,65754.0,0.04936221]
[1721178491882,0.08297097,65767.0,65755.0,0.13280735]
[1721178492039,0.08297097,65767.0,65756.0,0.12627117]
[1721178492259,0.14047479,65766.0,65765.0,0.01]
[1721178492449,1.05121853,65766.0,65765.0,0.01]
[1721178492803,0.59505653,65766.0,65765.0,0.01]
[1721178493011,0.3635,65766.0,65765.0,0.01]
[1721178493153,0.1434,65766.0,65765.0,0.01]
[1721178493353,0.1434,65766.0,65752.0,0.152085]
[1721178493354,0.1434,65766.0,65753.0,0.61817275]
[1721178493598,0.07994576,65765.0,65754.0,0.13341574]
[1721178493799,0.07994576,65765.0,65755.0,0.12627389]
[1721178493999,0.00277097,65765.0,65756.0,0.12627389]
[1721178494208,0.00277097,65765.0,65757.0,0.12627389]
[1721178494403,0.00277097,65765.0,65756.0,0.00713937]
[1721178494605,0.00277097,65765.0,65758.0,0.00713689]
[1721178494810,0.00277097,65765.0,65757.0,0.12627641]
[1721178495014,0.359,65762.0,65759.0,0.00713565]
[1721178495176,0.152068,65760.0,65758.0,0.00713689]
[1721178495383,0.14167097,65759.0,65751.0,0.06827283]
[1721178495578,0.2201,65756.0,65751.0,0.06827283]
[1721178495943,0.215484,65753.0,65752.0,0.00657977]
[1721178496146,0.0634,65753.0,65752.0,0.00657977]
[1721178496349,0.06617097,65753.0,65751.0,0.01901039]
[1721178496695,0.21825497,65753.0,65751.0,0.01901039]
[1721178496904,0.06617097,65753.0,65751.0,0.01901039]
[1721178497715,0.152086,65752.0,65751.0,0.01901039]
[1721178497922,0.68891171,65752.0,65751.0,0.01901039]
[1721178498129,0.38196774,65752.0,65751.0,0.01901039]
[1721178498593,0.99031374,65752.0,65751.0,0.02001039]
[1721178498804,1.05648471,65752.0,65751.0,0.02001039]
[1721178499007,0.1389,65752.0,65751.0,0.02001039]
[1721178499896,0.1389,65752.0,65751.0,0.02632356]
[1721178500079,0.1389,65752.0,65751.0,0.01901039]
[1721178500247,0.1409,65752.0,65751.0,0.01901039]
[1721178500461,0.1389,65752.0,65751.0,0.01901039]
[1721178500869,0.1409,65752.0,65751.0,0.02001039]
[1721178502557,0.97164074,65752.0,65751.0,0.02001039]
[1721178503107,0.96964074,65752.0,65751.0,0.01901039]
[1721178503312,0.96964074,65752.0,65751.0,0.000924]
[1721178503518,1.27681374,65752.0,65751.0,0.000924]
[1721178503933,1.27381374,65752.0,65751.0,0.000924]
[1721178504317,0.97264074,65752.0,65751.0,0.001924]
[1721178504519,0.66546774,65752.0,65751.0,0.000924]
[1721178504901,0.66846774,65752.0,65751.0,0.000924]
[1721178505124,0.362,65752.0,65751.0,0.000924]
[1721178505716,0.1419,65752.0,65751.0,0.000924]
[1721178506155,0.003,65752.0,65751.0,0.000924]
[1721178506485,0.1408,65764.0,65751.0,0.00823841]
[1721178506692,0.002,65752.0,65751.0,0.00923841]
[1721178507205,0.00277097,65763.0,65751.0,0.00823841]
[1721178507407,0.00277097,65763.0,65751.0,0.01123841]
[1721178507564,0.00277097,65763.0,65751.0,0.000924]
[1721178508002,0.00277097,65763.0,65752.0,0.00731292]
[1721178508622,0.00277097,65763.0,65754.0,0.304162]
[1721178508851,0.00277097,65763.0,65758.0,0.152072]
[1721178509036,0.02284,65768.0,65756.0,0.152076]
[1721178509222,0.02284,65768.0,65759.0,0.15933298]
[1721178509544,0.02284,65768.0,65758.0,0.15438174]
[1721178509743,0.02284,65768.0,65760.0,0.00726249]
[1721178509967,0.02284,65768.0,65761.0,0.15742256]
[1721178510149,0.02284,65768.0,65767.0,0.456154]
[1721178510354,0.02284,65768.0,65767.0,1.08113874]
[1721178510555,0.02284,65768.0,65767.0,1.21464548]
[1721178510758,0.18787002,65775.0,65767.0,0.45438848]
[1721178510960,0.18787002,65775.0,65768.0,0.32943074]
[1721178511158,0.18787002,65775.0,65774.0,0.152035]
[1721178511364,0.18787002,65775.0,65774.0,0.023]
[1721178511701,0.18787002,65775.0,65774.0,0.00723718]
[1721178512238,0.18787002,65775.0,65768.0,0.7]
[1721178512441,0.18787002,65775.0,65774.0,0.03023718]
[1721178512591,0.18787002,65775.0,65774.0,0.023]
[1721178512796,0.18787002,65775.0,65774.0,0.00723718]
[1721178513003,0.18787002,65775.0,65774.0,0.023]
[1721178513214,0.18787002,65775.0,65774.0,0.03023718]
[1721178513993,0.18787002,65775.0,65774.0,0.03823718]
[1721178515577,0.18787002,65775.0,65774.0,0.01523718]
[1721178515985,0.18787002,65775.0,65774.0,0.008]
[1721178516755,0.25357002,65775.0,65774.0,0.008]
[1721178517355,0.18787002,65775.0,65774.0,0.008]
[1721178518344,0.0627,65774.0,65763.0,0.1]
[1721178518604,0.0755,65772.0,65762.0,0.466]
[1721178518793,0.00277097,65771.0,65764.0,0.00725205]
[1721178519035,0.07717479,65765.0,65762.0,0.466]
[1721178519256,0.00277097,65764.0,65762.0,0.466]
[1721178519773,0.0621,65763.0,65762.0,0.466]
[1721178519983,0.0621,65769.0,65762.0,0.466]
[1721178520129,0.152057,65765.0,65762.0,0.466]
[1721178520334,0.00277097,65764.0,65762.0,0.466]
[1721178521089,0.00277097,65768.0,65762.0,0.468]
[1721178521291,0.00277097,65768.0,65763.0,0.00722433]
[1721178521841,0.00277097,65766.0,65763.0,0.00722433]
[1721178522038,0.00277097,65768.0,65763.0,0.00722433]
[1721178522247,0.07717479,65767.0,65763.0,0.00722433]
[1721178522650,0.00277097,65766.0,65763.0,0.00722433]
[1721178523114,0.0621,65769.0,65763.0,0.00722433]
[1721178523325,0.00277097,65768.0,65763.0,0.00722433]
[1721178523544,0.00477097,65768.0,65763.0,0.00722433]
[1721178523759,0.00277097,65768.0,65763.0,0.00722433]
[1721178524022,0.00277097,65768.0,65763.0,0.00822433]
[1721178524481,0.00277097,65768.0,65760.0,0.7]
[1721178524736,0.00477097,65768.0,65764.0,0.00722406]
[1721178524936,0.002,65768.0,65765.0,0.023]
[1721178525181,0.002,65768.0,65767.0,0.7]
[1721178525406,0.002,65768.0,65767.0,0.73021959]
[1721178526395,0.18787002,65775.0,65767.0,0.73021959]
[1721178526607,0.002,65768.0,65767.0,0.73021959]
[1721178526850,0.18787002,65775.0,65767.0,0.73021959]
[1721178527245,0.07994576,65774.0,65767.0,0.02121959]
[1721178527407,0.23198176,65774.0,65767.0,0.00721959]
[1721178527624,0.07994576,65774.0,65757.0,0.1]
[1721178527844,0.07994576,65774.0,65768.0,0.00721811]
[1721178528292,0.07994576,65774.0,65767.0,0.009]
[1721178528293,0.00277097,65774.0,65767.0,0.009]
[1721178528536,0.07717479,65773.0,65767.0,0.009]
[1721178528777,0.07717479,65773.0,65757.0,0.1]
[1721178528778,0.00277097,65772.0,65757.0,0.1]
[1721178529010,0.00277097,65772.0,65758.0,0.023]
[1721178529276,0.00277097,65772.0,65763.0,0.5]
[1721178529455,0.18787002,65775.0,65764.0,0.17738174]
[1721178529715,0.00277097,65774.0,65764.0,0.17738174]
[1721178530011,0.07717479,65772.0,65764.0,0.00722406]
[1721178530251,0.0617,65771.0,65767.0,0.001]
[1721178530474,0.06447097,65771.0,65767.0,0.001]
[1721178530742,0.06447097,65771.0,65753.0,0.5646]
[1721178530980,0.06447097,65771.0,65764.0,0.002]
[1721178531199,0.06447097,65771.0,65757.0,0.00723447]
[1721178531418,0.21651397,65771.0,65756.0,0.1497196]
[1721178531631,0.21651397,65771.0,65758.0,0.00723298]
[1721178531632,0.0805,65770.0,65758.0,0.00723298]
[1721178531940,0.00277097,65769.0,65758.0,0.00723298]
[1721178532137,0.00277097,65769.0,65756.0,0.0497196]
[1721178532138,0.2201,65761.0,65759.0,0.00721756]
[1721178532286,0.00277097,65760.0,65759.0,0.00721756]
[1721178532464,0.2201,65767.0,65751.0,0.466924]
[1721178532465,0.372151,65767.0,65751.0,0.466924]
[1721178532666,0.00277097,65766.0,65759.0,0.00653041]
[1721178532888,0.00277097,65766.0,65752.0,0.15438174]
[1721178533093,0.00277097,65766.0,65760.0,0.00652892]
[1721178533293,0.00277097,65766.0,65755.0,0.5]
[1721178533497,0.00277097,65766.0,65761.0,0.00652743]
[1721178533691,0.0805,65770.0,65756.0,0.023]
[1721178533692,0.00277097,65769.0,65756.0,0.023]
[1721178533872,0.00277097,65769.0,65762.0,0.00652594]
[1721178534068,0.00277097,65769.0,65756.0,0.023]
[1721178534291,0.00277097,65769.0,65763.0,0.00652446]
[1721178534452,0.00277097,65769.0,65756.0,0.023]
[1721178534654,0.00277097,65769.0,65764.0,0.00652297]
[1721178534877,0.00277097,65769.0,65760.0,0.003]
[1721178535268,0.00277097,65769.0,65756.0,0.026041]
[1721178535473,0.001,65769.0,65763.0,0.00277097]
[1721178535674,0.001,65769.0,65764.0,0.15742229]
[1721178535821,0.001,65769.0,65765.0,0.02577097]
[1721178536001,0.001,65769.0,65765.0,0.17738174]
[1721178536202,0.001,65769.0,65766.0,0.00929096]
[1721178536442,0.001,65769.0,65767.0,0.30666779]
[1721178536648,0.001,65769.0,65768.0,0.29781997]
[1721178536851,0.001,65769.0,65768.0,0.77930071]
[1721178536993,0.001,65769.0,65768.0,0.78581773]
[1721178537192,0.001,65769.0,65768.0,0.48171873]
[1721178537395,5e-05,65780.0,65773.0,0.5]
[1721178537596,5e-05,65780.0,65774.0,0.023]
[1721178537994,5e-05,65780.0,65774.0,0.0295081]
[1721178538177,5e-05,65780.0,65774.0,0.18388984]
[1721178538937,0.18987002,65775.0,65774.0,0.18488984]
[1721178539277,0.18787002,65775.0,65774.0,0.18388984]
[1721178540646,0.18987002,65775.0,65774.0,0.18388984]
[1721178541048,0.18987002,65775.0,65774.0,0.0295081]
[1721178541401,0.18987002,65775.0,65774.0,0.18588984]
[1721178541602,0.18787002,65775.0,65774.0,0.18388984]
[1721178541746,0.18787002,65775.0,65774.0,0.0065081]
[1721178541964,0.18787002,65775.0,65774.0,0.0325081]
[1721178542171,0.18787002,65775.0,65774.0,0.0295081]
[1721178542750,0.18787002,65775.0,65774.0,0.19188984]
[1721178543611,0.18787002,65775.0,65774.0,1.04029584]
[1721178543823,0.18787002,65775.0,65774.0,2.17436684]
[1721178544037,0.18787002,65775.0,65774.0,2.59843784]
[1721178544259,5e-05,65780.0,65779.0,0.202024]
[1721178544496,5e-05,65780.0,65779.0,3.03958499]
[1721178544700,5e-05,65780.0,65779.0,3.08304586]
[1721178544868,0.59658613,65797.0,65796.0,1.774522]
[1721178545077,0.59658613,65797.0,65796.0,2.55621585]
[1721178545278,0.59658613,65797.0,65796.0,3.37258364]
[1721178545450,0.59658613,65797.0,65796.0,3.06861464]
[1721178545658,0.59658613,65797.0,65796.0,3.46144201]
[1721178545819,0.59658613,65797.0,65796.0,4.92224889]
[1721178546021,0.59658613,65797.0,65796.0,5.2729843]
[1721178546216,0.59658613,65797.0,65796.0,4.87258364]
[1721178546699,0.59658613,65797.0,65796.0,5.17655264]
[1721178546871,0.59658613,65797.0,65796.0,5.92331905]
[1721178547101,0.59658613,65797.0,65796.0,5.9729843]
[1721178547320,0.59658613,65797.0,65796.0,5.9369843]
[1721178547508,0.59658613,65797.0,65796.0,5.9229843]
[1721178547687,0.59658613,65797.0,65796.0,6.2769533]
[1721178547881,0.59658613,65797.0,65796.0,5.9729843]
[1721178548086,0.59658613,65797.0,65796.0,5.98611013]
[1721178548328,0.59658613,65797.0,65796.0,5.93611013]
[1721178548690,0.59742613,65797.0,65796.0,5.93611013]
[1721178548887,0.59742613,65797.0,65796.0,5.98611013]
[1721178549641,0.36982613,65797.0,65796.0,7.21954774]
[1721178549859,0.00099198,65808.0,65799.0,1.113842]
[1721178550070,0.00837,65819.0,65813.0,1.405836]
[1721178550207,0.00837,65819.0,65813.0,7.05759974]
[1721178550414,0.00837,65819.0,65813.0,9.74266326]
[1721178550615,0.00837,65819.0,65815.0,1.113587]
[1721178550844,0.00837,65819.0,65815.0,3.15183257]
[1721178551047,0.00837,65819.0,65815.0,3.50677476]
[1721178551222,0.00837,65819.0,65815.0,4.97379823]
[1721178551424,0.00837,65819.0,65815.0,4.96362886]
[1721178551629,0.00837,65819.0,65815.0,5.21428858]
[1721178551829,0.00837,65819.0,65815.0,3.92952458]
[1721178552096,0.00837,65819.0,65815.0,2.80264258]
[1721178552361,0.00837,65819.0,65815.0,1.03229697]
[1721178552609,0.00837,65819.0,65815.0,0.916805]
[1721178553103,0.00837,65819.0,65815.0,0.216805]
[1721178553333,0.00837,65819.0,65815.0,0.06242326]
[1721178553548,0.00837,65819.0,65815.0,0.02055721]
[1721178554312,0.151934,65818.0,65815.0,0.02055721]
[1721178554514,0.16292262,65816.0,65815.0,0.00655721]
[1721178554738,0.16292262,65816.0,65815.0,0.02055721]
[1721178555120,0.16292262,65816.0,65815.0,0.00655721]
[1721178555326,0.16292262,65816.0,65815.0,0.01755721]
[1721178557127,0.16292262,65816.0,65815.0,0.51755721]
[1721178557293,0.01802262,65816.0,65815.0,1.30076195]
[1721178557510,0.01802262,65816.0,65815.0,2.06819339]
[1721178557715,0.01802262,65816.0,65815.0,2.90535599]
[1721178557936,0.00836,65826.0,65825.0,1.709587]
[1721178558135,0.00836,65826.0,65825.0,4.37790374]
[1721178558345,0.00836,65826.0,65825.0,4.59469415]
[1721178558547,0.00836,65826.0,65825.0,4.46856349]
[1721178558752,0.00836,65826.0,65825.0,4.46857615]
[1721178558885,0.00836,65826.0,65825.0,4.77241115]
[1721178559093,0.00102101,65833.0,65830.0,1.113342]
[1721178559292,5e-05,65840.0,65830.0,3.82546871]
[1721178559496,1e-08,65838.0,65837.0,1.86383174]
[1721178559730,1e-08,65838.0,65837.0,1.85438174]
[1721178559941,1e-08,65838.0,65837.0,2.68306022]
[1721178560143,1e-08,65838.0,65837.0,1.78306022]
[1721178560342,1e-08,65838.0,65837.0,0.26006022]
[1721178560551,1e-08,65838.0,65837.0,0.96006022]
[1721178560751,1e-08,65838.0,65837.0,1.13495022]
[1721178560968,1e-08,65838.0,65837.0,1.79528119]
[1721178561171,1e-08,65838.0,65837.0,1.49150119]
[1721178561371,1e-08,65838.0,65837.0,1.48873022]
[1721178561802,1e-08,65838.0,65837.0,1.79251022]
[1721178562004,1e-08,65838.0,65837.0,1.80351022]
[1721178562210,1e-08,65838.0,65837.0,1.84063808]
[1721178562418,1e-08,65838.0,65837.0,2.13341808]
[1721178562757,1e-08,65838.0,65837.0,2.14741808]
[1721178562955,1e-08,65838.0,65837.0,2.33130625]
[1721178563136,1e-08,65838.0,65837.0,2.33341808]
[1721178563319,1e-08,65838.0,65837.0,2.49339996]
[1721178564616,5e-05,65840.0,65837.0,2.50740221]
[1721178564828,0.02055268,65841.0,65840.0,1.113181]
[1721178564979,0.02055268,65841.0,65840.0,1.9383978]
[1721178565184,0.02055268,65841.0,65840.0,3.16192082]
[1721178565383,0.073,65850.0,65841.0,1.15071544]
[1721178565604,0.073,65850.0,65841.0,2.70072611]
[1721178565787,0.073,65850.0,65841.0,2.66873443]
[1721178566013,8.112e-05,65861.0,65858.0,2.316573]
[1721178566192,8.112e-05,65861.0,65858.0,7.1748507]
[1721178566369,8.112e-05,65861.0,65858.0,7.21733592]
[1721178566720,5e-05,65880.0,65858.0,7.21733592]
[1721178566721,5e-05,65880.0,65863.0,0.50549]
[1721178566921,1e-06,65864.0,65863.0,3.1124477]
[1721178567161,0.295,65877.0,65876.0,0.2]
[1721178567363,0.29,65877.0,65876.0,2.2388]
[1721178567573,0.29,65877.0,65876.0,2.99939218]
[1721178567850,0.29,65877.0,65876.0,2.24039218]
[1721178568186,0.3659,65877.0,65876.0,0.05339218]
[1721178568383,0.1375,65875.0,65863.0,0.74987068]
[1721178568595,0.07717479,65872.0,65864.0,0.96304871]
[1721178568808,0.07717479,65872.0,65863.0,0.74987068]
[1721178568809,0.1375,65864.0,65863.0,0.74987068]
[1721178568993,0.592984,65864.0,65863.0,0.04987068]
[1721178569201,0.30366,65863.0,65847.0,0.5]
[1721178569339,0.30366,65863.0,65826.0,0.303827]
[1721178569340,0.21467479,65849.0,65848.0,0.00277097]
[1721178569552,0.21467479,65849.0,65845.0,0.804]
[1721178569956,0.21467479,65849.0,65827.0,0.51799612]
[1721178569957,0.0616,65842.0,65827.0,0.51799612]
[1721178570187,0.0616,65842.0,65835.0,0.04947092]
[1721178570188,0.07717479,65840.0,65835.0,0.04947092]
[1721178570420,0.38094379,65840.0,65835.0,0.04947092]
[1721178570614,0.0616,65835.0,65828.0,0.00277097]
[1721178570887,0.0759,65834.0,65831.0,0.00277097]
[1721178571089,0.0759,65834.0,65832.0,0.15741944]
[1721178571324,0.04948076,65842.0,65840.0,0.00277097]
[1721178571435,0.04948076,65842.0,65841.0,1.16115271]
[1721178571636,0.04948076,65842.0,65841.0,2.24390781]
[1721178571838,0.1375,65853.0,65852.0,0.5]
[1721178572041,0.04960994,65855.0,65853.0,0.00277097]
[1721178572296,0.04960994,65855.0,65854.0,0.15438174]
[1721178572444,0.1375,65871.0,65855.0,0.00277097]